fUST/lending_fUST_20250127
["ID","MTS","AMOUNT","RATE_DAILY","PERIOD"]
[350558540,1737961851643,-500.0,0.00019642,2]
[350558541,1737961851652,-500.0,0.00019642,2]
[350558542,1737961851662,-500.0,0.00019642,2]
[350558543,1737961851671,-500.0,0.00019642,2]
[350558544,1737961851680,-318.72,0.00019642,2]
[350558545,1737961851690,-545.08,0.00019642,2]
[350558546,1737961851699,-500.0,0.00019642,2]
[350558547,1737961851708,-500.0,0.00019642,2]
[350558548,1737961851717,-500.0,0.00019642,2]
[350558549,1737961851727,-500.0,0.00019642,2]
[350558550,1737961851736,-540.80631932,0.00019642,2]
[350558551,1737961851745,-312.0,0.00019642,2]
[350558552,1737961851756,-500.0,0.00019642,2]
[350558553,1737961851766,-500.0,0.00019642,2]
[350558554,1737961851775,-500.0,0.00019642,2]
[350558555,1737961851785,-500.0,0.00019642,2]
[350558556,1737961851795,-151.878997,0.00019642,2]
[350558558,1737961851804,-500.0,0.00019642,2]
[350558560,1737961851813,-500.0,0.00019642,2]
[350558562,1737961851823,-685.03,0.00019642,2]
[350558563,1737961851833,-500.0,0.00019642,2]
[350558565,1737961851843,-500.0,0.00019642,2]
[350558567,1737961851852,-500.0,0.00019642,2]
[350558569,1737961851861,-500.0,0.00019642,2]
[350558571,1737961851870,-13324.06,0.00019642,2]
[350558573,1737961851879,-500.0,0.00019642,2]
[350558575,1737961851889,-574.5,0.00019642,2]
[350558576,1737961851899,-500.0,0.00019642,2]
[350558577,1737961851909,-500.0,0.00019642,2]
[350558578,1737961851919,-500.0,0.00019642,2]
[350558579,1737961851928,-500.0,0.00019642,2]
[350558580,1737961851938,-321.84,0.00019642,2]
[350558581,1737961851948,-500.0,0.00019642,2]
[350558582,1737961851957,-500.0,0.00019642,2]
[350558583,1737961851967,-551.84,0.00019642,2]
[350558584,1737961851977,-500.0,0.00019642,2]
[350558585,1737961851986,-500.0,0.00019642,2]
[350558586,1737961851995,-500.0,0.00019643,2]
[350558587,1737961852005,-500.0,0.00019643,2]
[350558588,1737961852015,-212.26,0.00019643,2]
[350558589,1737961852024,-500.0,0.00019643,2]
[350558590,1737961852034,-500.0,0.00019643,2]
[350558591,1737961852044,-500.0,0.00019643,2]
[350558592,1737961852054,-707.92,0.00019776,2]
[350558593,1737961852064,-500.0,0.00019776,2]
[350558594,1737961852076,-500.0,0.00019776,2]
[350558595,1737961852085,-951.38,0.00019777,2]
[350558596,1737961852099,-643.19,0.00019777,2]
[350558597,1737961852110,-1819.31,0.00019777,2]
[350558598,1737961852121,-639.81,0.00019777,2]
[350558599,1737961852131,-3367.01,0.00019777,2]
[350558600,1737961852140,-500.0,0.00019777,2]
[350558601,1737961852150,-909.07,0.00019777,2]
[350558602,1737961852160,-500.0,0.00019777,2]
[350558603,1737961852169,-500.0,0.00019777,2]
[350558604,1737961852178,-504.08,0.00019777,2]
[350558605,1737961852188,-675.2,0.00019777,2]
[350558606,1737961852197,-1042.44,0.00019777,2]
[350558607,1737961852206,-500.0,0.00019777,2]
[350558608,1737961852215,-3477.11,0.00019777,2]
[350558609,1737961852224,-500.0,0.00019777,2]
[350558610,1737961852233,-933.95,0.00019777,2]
[350558611,1737961852246,-500.0,0.00019777,2]
[350558612,1737961852262,-500.0,0.00019777,2]
[350558613,1737961852277,-500.0,0.00019777,2]
[350558614,1737961852290,-500.0,0.00019779,2]
[350558615,1737961852305,-153.6,0.00019779,2]
[350558616,1737961852320,-484.15,0.00019779,2]
[350558617,1737961852335,-500.0,0.00019779,2]
[350558618,1737961852358,-500.0,0.00019779,2]
[350558619,1737961852371,-500.0,0.00019779,2]
[350558620,1737961852385,-500.0,0.00019779,2]
[350558621,1737961852400,-500.0,0.00019779,2]
[350558622,1737961852412,-353.52,0.00019779,2]
[350558623,1737961852424,-500.0,0.00019779,2]
[350558624,1737961852438,-500.0,0.00019779,2]
[350558625,1737961852454,-459.68,0.00019779,2]
[350558626,1737961852470,-621.84,0.00019779,2]
[350558627,1737961852484,-500.0,0.00019779,2]
[350558628,1737961852497,-395.30241624,0.00019779,2]
[350558629,1737961852509,-500.0,0.00019779,2]
[350558630,1737961852526,-500.0,0.00019779,2]
[350558631,1737961852540,-500.0,0.00019779,2]
[350558632,1737961852553,-500.0,0.00019779,2]
[350558633,1737961852567,-685.03,0.00019779,2]
[350558634,1737961852579,-496.16,0.00019779,2]
[350558635,1737961852592,-500.0,0.00019779,2]
[350558636,1737961852604,-500.0,0.00019779,2]
[350558637,1737961852618,-500.0,0.00019779,2]
[350558638,1737961852632,-13324.06,0.00019779,2]
[350558639,1737961852644,-500.0,0.00019779,2]
[350558640,1737961852657,-574.5,0.00019779,2]
[350558641,1737961852670,-500.0,0.00019779,2]
[350558642,1737961852683,-431.08,0.00019779,2]
[350558643,1737961852696,-500.4,0.00019779,2]
[350558644,1737961852709,-500.0,0.00019779,2]
[350558645,1737961852721,-500.0,0.00019779,2]
[350558646,1737961852733,-616.91,0.00019779,2]
[350558647,1737961852746,-500.0,0.00019779,2]
[350558648,1737961852758,-635.18,0.00019779,2]
[350558649,1737961852770,-500.0,0.0001978,2]
[350558650,1737961852782,-500.0,0.0001978,2]
[350558651,1737961852795,-500.0,0.0001978,2]
[350558652,1737961852805,-500.0,0.0001978,2]
[350558653,1737961852815,-500.0,0.0001978,2]
[350558654,1737961852825,-707.92,0.00019913,2]
[350558655,1737961852835,-500.0,0.00019913,2]
[350558656,1737961852845,-500.0,0.00019913,2]
[350558657,1737961852854,-951.38,0.00019914,2]
[350558658,1737961852864,-1819.31,0.00019914,2]
[350558659,1737961852873,-639.81,0.00019914,2]
[350558660,1737961852882,-3367.01,0.00019914,2]
[350558661,1737961852892,-500.0,0.00019914,2]
[350558662,1737961852902,-909.07,0.00019914,2]
[350558663,1737961852911,-500.0,0.00019914,2]
[350558664,1737961852921,-500.0,0.00019914,2]
[350558665,1737961852930,-675.2,0.00019914,2]
[350558666,1737961852940,-1042.44,0.00019914,2]
[350558667,1737961852949,-500.0,0.00019914,2]
[350558668,1737961852959,-3477.11,0.00019914,2]
[350558669,1737961852969,-500.0,0.00019914,2]
[350558670,1737961852978,-933.95,0.00019914,2]
[350558671,1737961852987,-500.0,0.00019914,2]
[350558672,1737961852997,-500.0,0.00019914,2]
[350558673,1737961853006,-500.0,0.00019914,2]
[350558674,1737961853016,-151.0,0.00019915,2]
[350558675,1737961853025,-500.0,0.00019916,2]
[350558676,1737961853035,-500.0,0.00019916,2]
[350558677,1737961853044,-198.24,0.00019916,2]
[350558678,1737961853209,-554.64,0.00019916,2]
[350558679,1737961853225,-152.44,0.00019916,2]
[350558680,1737961853235,-356.08,0.00019916,2]
[350558681,1737961853244,-500.0,0.00019916,2]
[350558682,1737961853253,-500.0,0.00019916,2]
[350558683,1737961853262,-167.76,0.00019916,2]
[350558684,1737961853272,-265.92,0.00019916,2]
[350558685,1737961853282,-500.0,0.00019916,2]
[350558686,1737961853291,-211.04,0.00019916,2]
[350558687,1737961853300,-500.0,0.00019916,2]
[350558688,1737961853309,-685.03,0.00019916,2]
[350558689,1737961853319,-500.0,0.00019916,2]
[350558690,1737961853328,-500.0,0.00019916,2]
[350558691,1737961853337,-500.0,0.00019916,2]
[350558692,1737961853347,-13324.06,0.00019916,2]
[350558693,1737961853356,-500.0,0.00019916,2]
[350558694,1737961853365,-574.5,0.00019916,2]
[350558695,1737961853375,-500.0,0.00019916,2]
[350558696,1737961853384,-500.0,0.00019916,2]
[350558697,1737961853394,-226.72,0.00019916,2]
[350558698,1737961853404,-500.0,0.00019916,2]
[350558699,1737961853413,-500.0,0.00019917,2]
[350558700,1737961853423,-400.17,0.00019917,2]
[350558701,1737961853432,-500.0,0.00019917,2]
[350558702,1737961853441,-500.0,0.00019917,2]
[350558703,1737961853450,-160.0,0.0002,2]
[350558704,1737961853459,-3476.03,0.0002,2]
[350558705,1737961853469,-7044.0,0.0002,2]
[350558706,1737961853478,-707.92,0.0002005,2]
[350558707,1737961853487,-500.0,0.0002005,2]
[350558708,1737961853496,-500.0,0.0002005,2]
[350558709,1737961853506,-951.38,0.00020051,2]
[350558710,1737961853515,-1819.31,0.00020051,2]
[350558711,1737961853527,-639.81,0.00020051,2]
[350558712,1737961853540,-3367.01,0.00020051,2]
[350558713,1737961853549,-500.0,0.00020051,2]
[350558714,1737961853559,-909.07,0.00020051,2]
[350558715,1737961853570,-500.0,0.00020051,2]
[350558716,1737961853579,-500.0,0.00020051,2]
[350558717,1737961853590,-675.2,0.00020051,2]
[350558718,1737961853599,-1042.44,0.00020051,2]
[350558719,1737961853608,-358.92,0.00020051,2]
[350558720,1737961853618,-3477.11,0.00020051,2]
[350558721,1737961853628,-500.0,0.00020051,2]
[350558722,1737961853638,-933.95,0.00020051,2]
[350558723,1737961853647,-500.0,0.00020051,2]
[350558724,1737961853657,-500.0,0.00020051,2]
[350558725,1737961853667,-500.0,0.00020051,2]
[350558726,1737961853676,-590.44,0.00020053,2]
[350558727,1737961853686,-500.0,0.00020053,2]
[350558728,1737961853695,-500.0,0.00020053,2]
[350558729,1737961853704,-500.0,0.00020053,2]
[350558730,1737961853713,-500.0,0.00020053,2]
[350558731,1737961853723,-348.84,0.00020053,2]
[350558732,1737961853733,-685.03,0.00020053,2]
[350558733,1737961853742,-164.8,0.00020053,2]
[350558734,1737961853751,-500.0,0.00020053,2]
[350558735,1737961853760,-500.0,0.00020053,2]
[350558736,1737961853770,-13324.06,0.00020053,2]
[350558737,1737961853780,-500.0,0.00020053,2]
[350558738,1737961853789,-574.5,0.00020053,2]
[350558739,1737961853799,-500.0,0.00020053,2]
[350558740,1737961853809,-500.0,0.00020053,2]
[350558741,1737961853818,-500.0,0.00020053,2]
[350558742,1737961853827,-500.0,0.00020054,2]
[350558743,1737961853836,-500.0,0.00020054,2]
[350558744,1737961853847,-500.0,0.00020054,2]
[350558745,1737961853856,-420.0,0.00020075,2]
[350558746,1737961853865,-707.92,0.00020187,2]
[350558747,1737961853875,-176.2236998,0.00020187,2]
[350558748,1737961853884,-500.0,0.00020187,2]
[350558749,1737961853893,-951.38,0.00020188,2]
[350558750,1737961853902,-1819.31,0.00020188,2]
[350558751,1737961853911,-639.81,0.00020188,2]
[350558752,1737961853920,-3367.01,0.00020188,2]
[350558753,1737961853929,-500.0,0.00020188,2]
[350558754,1737961853938,-909.07,0.00020188,2]
[350558755,1737961853948,-500.0,0.00020188,2]
[350558756,1737961853957,-500.0,0.00020188,2]
[350558757,1737961853966,-675.2,0.00020188,2]
[350558758,1737961853976,-1042.44,0.00020188,2]
[350558759,1737961853985,-2883.51328003,0.00020188,2]
[350558760,1737961854060,-586.68,0.00020188,2]
[350558761,1737961854080,-178.04617312,0.00018406,2]
[350558762,1737961854089,-6.91671997,0.00020188,2]
[350558763,1737961854099,-403.00582692,0.00020188,2]
[350558764,1737961854111,-96.99417308,0.00020188,2]
[350558765,1737961854120,-933.95,0.00020188,2]
[350558766,1737961854130,-500.0,0.00020188,2]
[350558767,1737961854139,-500.0,0.00020188,2]
[350558768,1737961854149,-500.0,0.00020188,2]
[350558769,1737961854158,-500.0,0.0002019,2]
[350558770,1737961854167,-500.0,0.0002019,2]
[350558771,1737961854176,-500.0,0.0002019,2]
[350558772,1737961854185,-500.0,0.0002019,2]
[350558773,1737961854194,-685.03,0.0002019,2]
[350558774,1737961854203,-500.0,0.0002019,2]
[350558775,1737961854212,-383.12,0.0002019,2]
[350558776,1737961854221,-4069.89568461,0.0002019,2]
[350558777,1737961854315,-500.0,0.00018407,2]
[350558778,1737961854325,-500.0,0.00018409,2]
[350558779,1737961854334,-500.0,0.00018546,2]
[350558780,1737961854344,-500.0,0.00018683,2]
[350558781,1737961854353,-500.0,0.0001882,2]
[350558782,1737961854362,-9254.16431539,0.0002019,2]
[350558783,1737961854371,-461.24,0.0002019,2]
[350558784,1737961854380,-574.5,0.0002019,2]
[350558785,1737961854388,-500.0,0.0002019,2]
[350558786,1737961854398,-500.0,0.0002019,2]
[350558787,1737961854407,-446.29785688,0.0002019,2]
[350558788,1737961854416,-500.0,0.00020191,2]
[350558789,1737961854425,-396.74,0.00020191,2]
[350558790,1737961854434,-500.0,0.00020191,2]
[350558791,1737961854443,-192.518241,0.00020191,2]
[350558792,1737961854453,-192.518241,0.00020191,2]
[350558793,1737961854463,-707.92,0.00020324,2]
[350558794,1737961854472,-500.0,0.00020324,2]
[350558795,1737961854482,-951.38,0.00020325,2]
[350558796,1737961854491,-1819.31,0.00020325,2]
[350558797,1737961854501,-639.81,0.00020325,2]
[350558798,1737961854511,-3367.01,0.00020325,2]
[350558799,1737961854521,-500.0,0.00020325,2]
[350558800,1737961854536,-909.07,0.00020325,2]
[350558801,1737961854547,-195.24847053,0.00020325,2]
[350558802,1737961854556,-635.6,0.00020325,2]
[350558803,1737961854566,-675.2,0.00020325,2]
[350558804,1737961854576,-1042.44,0.00020325,2]
[350558805,1737961854585,-3477.11,0.00020325,2]
[350558806,1737961854594,-489.16,0.00020325,2]
[350558807,1737961854603,-933.95,0.00020325,2]
[350558808,1737961854614,-500.0,0.00020325,2]
[350558809,1737961854625,-500.0,0.00020325,2]
[350558810,1737961854634,-500.0,0.00020325,2]
[350558811,1737961854643,-151.0,0.00020326,2]
[350558812,1737961854652,-151.0,0.00020326,2]
[350558813,1737961854662,-151.0,0.00020326,2]
[350558814,1737961854671,-538.44,0.00020327,2]
[350558815,1737961854681,-268.04,0.00020327,2]
[350558816,1737961854690,-500.0,0.00020327,2]
[350558817,1737961854699,-500.0,0.00020327,2]
[350558818,1737961854709,-685.03,0.00020327,2]
[350558819,1737961854718,-500.0,0.00020327,2]
[350558820,1737961854727,-13324.06,0.00020327,2]
[350558821,1737961854737,-574.5,0.00020327,2]
[350558822,1737961854747,-224.57,0.00020327,2]
[350558823,1737961854757,-500.0,0.00020327,2]
[350558824,1737961854767,-500.0,0.00020328,2]
[350558825,1737961854776,-500.0,0.00020328,2]
[350558826,1737961854786,-223.628794,0.00020447,2]
[350558827,1737961854795,-707.92,0.00020461,2]
[350558828,1737961854805,-500.0,0.00020461,2]
[350558829,1737961854814,-951.38,0.00020462,2]
[350558830,1737961854823,-1819.31,0.00020462,2]
[350558831,1737961854833,-639.81,0.00020462,2]
[350558832,1737961854843,-3367.01,0.00020462,2]
[350558833,1737961854852,-500.0,0.00020462,2]
[350558834,1737961854862,-909.07,0.00020462,2]
[350558835,1737961854871,-675.2,0.00020462,2]
[350558836,1737961854880,-1042.44,0.00020462,2]
[350558837,1737961854890,-3477.11,0.00020462,2]
[350558838,1737961854899,-933.95,0.00020462,2]
[350558839,1737961854909,-500.0,0.00020462,2]
[350558840,1737961854918,-500.0,0.00020462,2]
[350558841,1737961854928,-500.0,0.00020462,2]
[350558842,1737961854937,-500.0,0.00020464,2]
[350558843,1737961854947,-500.0,0.00020464,2]
[350558844,1737961854956,-685.03,0.00020464,2]
[350558845,1737961854966,-210.88,0.00020464,2]
[350558846,1737961854975,-13324.06,0.00020464,2]
[350558847,1737961854984,-574.5,0.00020464,2]
[350558848,1737961854993,-417.28,0.00020464,2]
[350558849,1737961855003,-500.0,0.00020465,2]
[350558850,1737961855012,-500.0,0.00020465,2]
[350558851,1737961855021,-707.92,0.00020598,2]
[350558852,1737961855030,-590.33518427,0.00020598,2]
[350558853,1737961855039,-2657.05055544,0.00020599,5]
[350558854,1737961855048,-951.38,0.00020599,2]
[350558855,1737961855058,-1819.31,0.00020599,2]
[350558856,1737961855067,-639.81,0.00020599,2]
[350558857,1737961855076,-3367.01,0.00020599,2]
[350558858,1737961855085,-500.0,0.00020599,2]
[350558859,1737961855095,-909.07,0.00020599,2]
[350558860,1737961855104,-675.2,0.00020599,2]
[350558861,1737961855113,-1042.44,0.00020599,2]
[350558862,1737961855122,-3477.11,0.00020599,2]
[350558863,1737961855132,-933.95,0.00020599,2]
[350558864,1737961855142,-500.0,0.00020599,2]
[350558865,1737961855151,-567.38,0.00020599,2]
[350558866,1737961855160,-500.0,0.00020599,2]
[350558867,1737961855170,-500.0,0.00020601,2]
[350558868,1737961855179,-500.0,0.00020601,2]
[350558869,1737961855190,-160.202296,0.00020601,2]
[350558870,1737961855199,-685.03,0.00020601,2]
[350558871,1737961855209,-13324.06,0.00020601,2]
[350558872,1737961855218,-574.5,0.00020601,2]
[350558873,1737961855227,-500.0,0.00020602,2]
[350558874,1737961855236,-500.0,0.00020602,2]
[350558875,1737961855245,-152.100726,0.00020602,2]
[350558876,1737961855254,-151.0,0.00020602,2]
[350558877,1737961855264,-151.0,0.00020602,2]
[350558878,1737961855273,-500.0,0.00020706,2]
[350558879,1737961855282,-500.0,0.00020706,2]
[350558880,1737961855292,-707.92,0.00020735,2]
[350558881,1737961855301,-951.38,0.00020736,2]
[350558882,1737961855311,-1819.31,0.00020736,2]
[350558883,1737961855320,-639.81,0.00020736,2]
[350558884,1737961855329,-3367.01,0.00020736,2]
[350558885,1737961855339,-631.59,0.00020736,2]
[350558886,1737961855351,-909.07,0.00020736,2]
[350558887,1737961855360,-675.2,0.00020736,2]
[350558888,1737961855370,-1042.44,0.00020736,2]
[350558889,1737961855379,-3477.11,0.00020736,2]
[350558890,1737961855389,-933.95,0.00020736,2]
[350558891,1737961855398,-500.0,0.00020736,2]
[350558892,1737961855408,-204.19,0.00020736,2]
[350558893,1737961855417,-401.96,0.00020738,2]
[350558894,1737961855426,-193.24,0.00020738,2]
[350558895,1737961855436,-685.03,0.00020738,2]
[350558896,1737961855445,-13324.06,0.00020738,2]
[350558897,1737961855455,-574.5,0.00020738,2]
[350558898,1737961855464,-500.0,0.00020739,2]
[350558899,1737961855474,-500.0,0.00020739,2]
[350558900,1737961855484,-707.92,0.00020872,2]
[350558901,1737961855493,-951.38,0.00020873,2]
[350558902,1737961855502,-1819.31,0.00020873,2]
[350558903,1737961855511,-639.81,0.00020873,2]
[350558904,1737961855521,-3367.01,0.00020873,2]
[350558905,1737961855531,-909.07,0.00020873,2]
[350558906,1737961855545,-675.2,0.00020873,2]
[350558907,1737961855555,-1042.44,0.00020873,2]
[350558908,1737961855564,-1684.82021013,0.00020873,2]
[350558909,1737961855578,-1792.28978987,0.00020873,2]
[350558910,1737961855588,-933.95,0.00020873,2]
[350558911,1737961855598,-270.76003013,0.00020873,2]
[350558912,1737961857232,-229.23996987,0.00020873,2]
[350558913,1737961857242,-685.03,0.00020875,2]
[350558914,1737961857251,-321.83683311,0.00020875,2]
[350558917,1737962067075,845.17,0.00010959,2]
[350558939,1737962272126,217.156051,0.00013973,2]
[350558943,1737962303119,262.52,0.00010959,2]
[350558944,1737962313620,401.07,0.00010959,2]
[350558945,1737962334540,151.92,0.00010959,2]
[350558947,1737962345041,759.63,0.00010959,2]
[350559010,1737962738412,250.0,0.00023,120]
[350559018,1737962835157,-335.23987538,0.00016038,2]
[350559019,1737962835184,-335.23987538,0.000162,2]
[350559020,1737962835209,-300.0,0.00016992,2]
[350559021,1737962835234,-572.4,0.00016993,2]
[350559022,1737962835259,-500.0,0.00016993,2]
[350559023,1737962835282,-500.0,0.00016993,2]
[350559024,1737962835308,-500.0,0.00016993,2]
[350559025,1737962835333,-500.0,0.00016993,2]
[350559026,1737962835355,-500.0,0.00016993,2]
[350559027,1737962835379,-500.0,0.00016993,2]
[350559028,1737962835402,-500.0,0.00016993,2]
[350559029,1737962835427,-500.0,0.00016993,2]
[350559030,1737962835449,-500.0,0.00016993,2]
[350559031,1737962835473,-500.0,0.00016993,2]
[350559032,1737962835499,-948.26,0.00016993,2]
[350559033,1737962835523,-693.65,0.00016993,2]
[350559034,1737962835547,-500.0,0.00016993,2]
[350559035,1737962835572,-500.0,0.00016993,2]
[350559036,1737962835594,-500.0,0.00016993,2]
[350559037,1737962835617,-500.0,0.00016993,2]
[350559038,1737962835640,-500.0,0.00016993,2]
[350559039,1737962835666,-500.0,0.00016993,2]
[350559040,1737962835689,-500.0,0.00016993,2]
[350559041,1737962835713,-500.0,0.00016993,2]
[350559042,1737962835735,-500.0,0.00016993,2]
[350559043,1737962835761,-500.0,0.00016993,2]
[350559044,1737962835785,-17858.74242477,0.00016994,2]
[350559054,1737962946375,-276.387534,0.00016221,2]
[350559055,1737962946397,-222.8975653,0.00016266,2]
[350559056,1737962946419,-1024.130027,0.00016312,2]
[350559057,1737962946442,-500.0,0.00016993,2]
[350559058,1737962946466,-500.0,0.00016993,2]
[350559059,1737962946489,-500.0,0.00016993,2]
[350559060,1737962946514,-500.0,0.00016993,2]
[350559061,1737962946540,-500.0,0.00016993,2]
[350559062,1737962946563,-500.0,0.00016993,2]
[350559063,1737962946587,-500.0,0.00016993,2]
[350559064,1737962946609,-512.2333439,0.00016993,2]
[350559065,1737962946632,-500.0,0.00016993,2]
[350559066,1737962946654,-500.0,0.00016993,2]
[350559067,1737962946678,-500.0,0.00016993,2]
[350559068,1737962946701,-500.0,0.00016993,2]
[350559069,1737962946725,-500.0,0.00016993,2]
[350559070,1737962946749,-500.0,0.00016993,2]
[350559071,1737962946775,-500.0,0.00016993,2]
[350559072,1737962946799,-500.0,0.00016993,2]
[350559073,1737962946821,-538.04,0.00016993,2]
[350559074,1737962946847,-500.0,0.00016993,2]
[350559075,1737962946870,-193.78666283,0.00016993,2]
[350559076,1737962946900,-500.0,0.00016993,2]
[350559077,1737962946926,-500.0,0.00016993,2]
[350559078,1737962946951,-4114.11396653,0.00016994,2]
[350559079,1737962946980,-500.0,0.0001713,2]
[350559080,1737962947008,-500.0,0.0001713,2]
[350559081,1737962947038,-590.25,0.0001713,2]
[350559082,1737962947062,-517.49330595,0.0001713,2]
[350559083,1737962947085,-500.0,0.0001713,2]
[350559084,1737962947108,-517.63016935,0.0001713,2]
[350559085,1737962947135,-948.26,0.0001713,2]
[350559086,1737962947161,-693.65,0.0001713,2]
[350559087,1737962947185,-470.4775395,0.0001713,2]
[350559088,1737962947210,-500.0,0.0001713,2]
[350559089,1737962947235,-500.0,0.0001713,2]
[350559090,1737962947260,-500.0,0.0001713,2]
[350559091,1737962947288,-500.0,0.0001713,2]
[350559092,1737962947311,-500.0,0.0001713,2]
[350559093,1737962947334,-500.0,0.0001713,2]
[350559094,1737962947359,-500.0,0.0001713,2]
[350559095,1737962947382,-500.0,0.0001713,2]
[350559096,1737962947405,-500.0,0.0001713,2]
[350559097,1737962947432,-234.27252423,0.0001713,2]
[350559098,1737962947458,-500.0,0.0001713,2]
[350559099,1737962947480,-424.75292099,0.0001713,2]
[350559100,1737962947505,-500.0,0.0001713,2]
[350559101,1737962947532,-500.0,0.0001713,2]
[350559102,1737962947555,-500.0,0.0001713,2]
[350559103,1737962947581,-500.0,0.0001713,2]
[350559104,1737962947605,-500.0,0.0001713,2]
[350559105,1737962947627,-202.3137795,0.00017149,2]
[350559106,1737962947654,-332.83,0.00017267,2]
[350559107,1737962947683,-500.0,0.00017267,2]
[350559108,1737962947709,-561.39,0.00017267,2]
[350559109,1737962947737,-948.26,0.00017267,2]
[350559110,1737962947763,-277.22851145,0.00017267,2]
[350559111,1737962947806,-416.42148855,0.00017267,2]
[350559112,1737962947836,-500.0,0.00017267,2]
[350559113,1737962947863,-500.0,0.00017267,2]
[350559114,1737962947895,-500.0,0.00017267,2]
[350559115,1737962947921,-358.07,0.00017267,2]
[350559116,1737962947948,-500.0,0.00017267,2]
[350559117,1737962947975,-500.0,0.00017267,2]
[350559118,1737962947999,-457.78,0.00017267,2]
[350559119,1737962948026,-500.0,0.00017267,2]
[350559120,1737962948054,-500.0,0.00017267,2]
[350559121,1737962948079,-500.0,0.00017267,2]
[350559122,1737962948105,-500.0,0.00017267,2]
[350559123,1737962948135,-500.0,0.00017267,2]
[350559124,1737962948159,-500.0,0.00017267,2]
[350559125,1737962948185,-500.0,0.00017404,2]
[350559126,1737962948212,-948.26,0.00017404,2]
[350559127,1737962948238,-693.65,0.00017404,2]
[350559128,1737962948264,-500.0,0.00017404,2]
[350559129,1737962948290,-500.0,0.00017404,2]
[350559130,1737962948314,-202.06997007,0.00017404,2]
[350559131,1737962948339,-500.0,0.00017404,2]
[350559132,1737962948364,-500.0,0.00017404,2]
[350559133,1737962948388,-500.0,0.00017404,2]
[350559134,1737962948412,-500.0,0.00017404,2]
[350559135,1737962948438,-500.0,0.00017404,2]
[350559136,1737962948461,-500.0,0.00017404,2]
[350559137,1737962948487,-500.0,0.00017404,2]
[350559138,1737962948511,-649.65,0.00017404,2]
[350559139,1737962948540,-500.0,0.00017541,2]
[350559140,1737962948566,-948.26,0.00017541,2]
[350559141,1737962948591,-693.65,0.00017541,2]
[350559142,1737962948617,-500.0,0.00017541,2]
[350559143,1737962948643,-500.0,0.00017541,2]
[350559144,1737962948669,-500.0,0.00017541,2]
[350559145,1737962948693,-500.0,0.00017541,2]
[350559146,1737962948720,-500.0,0.00017541,2]
[350559147,1737962948748,-500.0,0.00017541,2]
[350559148,1737962948774,-500.0,0.00017541,2]
[350559149,1737962948807,-500.0,0.00017541,2]
[350559150,1737962948834,-500.0,0.00017678,2]
[350559151,1737962948862,-948.26,0.00017678,2]
[350559152,1737962948891,-693.65,0.00017678,2]
[350559153,1737962948917,-500.0,0.00017678,2]